Cogmind - Beta 12 @@@ ROGUE MODE // 2023.12.28 @ 08:08:38 Player: puppuppit Result: Destroyed by as-88704 with Assembled Heavy Rifle Performance ------------- Evolutions (0) 0 Regions Visited (2) 400 Robots Destroyed (3) 15 Value Destroyed (39) 39 Prototype IDs (0) 0 Alien Tech Used (0) 0 Bonus (0) 0 TOTAL SCORE: 454 Bonus ------- None Cogmind --------- Core Integrity 0/250 Matter 293/300 Energy 51/140 System Corruption 0% Temperature Cool (24) Movement Hovering (80) Location -10/Mines Parts ------- > --- POWER (1) -------- Light Deuterium Engine > --- PROPULSION (2) --- Combat Airjet > --- UTILITY (2) ------ Signal Interpreter Improved Terrain Scanner > --- WEAPON (2) ------- (None) > --- INVENTORY (5) ---- Ion Engine Light Ion Engine Wheel Hover Unit Small Storage Unit Peak State ------------ > --- POWER ------------ Light Deuterium Engine > --- PROPULSION ------- Hover Unit Combat Airjet > --- UTILITY ---------- Signal Interpreter Improved Terrain Scanner > --- WEAPON ----------- (None) > --- INVENTORY -------- Ion Engine Light Ion Engine Wheel Hover Unit Small Storage Unit [Rating: 13] Favorites ----------- Power Light Ion Engine Engine Light Ion Engine Propulsion Hover Unit Wheel Wheel Hover Unit Hover Unit Utility Improved Terrain Scanner Device Improved Terrain Scanner Storage Small Storage Unit Processor Signal Interpreter Weapon Light Assault Rifle Ballistic Gun Light Assault Rifle Build | -11 -10 -10 ------- Run | Jun Mat Min Slots Evolved . | . . . Power . | . . . Propulsion . | . . . Utility . | . . . Weapon . | . . . Parts Attached 20 | 6 8 6 Power 4 | 1 2 1 Engine 4 | 1 2 1 Core . | . . . Reactor . | . . . Propulsion 10 | 2 4 4 Treads . | . . . Leg . | . . . Wheel 4 | 2 1 1 Hover 6 | . 3 3 Flight . | . . . Utility 4 | 2 1 1 Device 2 | 1 . 1 Storage 1 | 1 . . Processor 1 | . 1 . Hackware . | . . . Protection . | . . . Artifact . | . . . Weapon 2 | 1 1 . Energy Gun . | . . . Energy Cannon . | . . . Ballistic Gun 2 | 1 1 . Ballistic Cannon . | . . . Launcher . | . . . Special Weapon . | . . . Impact Weapon . | . . . Slashing Weapon . | . . . Piercing Weapon . | . . . Special Melee Weapon . | . . . Unidentified Prototypes . | . . . Parts Lost 3 | . . 3 Power 1 | . . 1 Propulsion 1 | . . 1 Utility . | . . . Weapon 1 | . . 1 Highest Loss Streak 3 | . . 3 To Critical Strikes . | . . . Average Slot Usage (%) 74 | . 79 70 Engine 10 | . 11 8 Wheel 8 | . 14 2 Hover 17 | . 14 20 Device 13 | . 14 12 Storage 7 | . 14 1 Processor 7 | . . 14 Ballistic Gun 10 | . 11 10 Naked Turns . | . . . Heaviest Build 12 | 12 12 9 Greatest Support 26 | 26 26 18 Greatest Overweight (x) 1 | . 1 . Average Overweight (x) . | . . . Largest Inventory Capacity 8 | 8 8 8 Average Capacity 6 | 7 8 5 Most Carried 5 | 1 4 5 Average Carried 2 | . 2 4 Final Capacity 8 | 8 8 5 Final Carried 5 | 1 4 5 Class Distribution -------------------- 56% | Scavenger-Mutant 43% | Mutant Dominant Class ---------------- Scavenger-Mutant | -10/Materials Scavenger-Mutant | -10/Mines Resources | -11 -10 -10 ----------- Run | Jun Mat Min Matter Collected 384 | 262 47 75 Remotely . | . . . Salvage Created 74 | 27 47 . Parts 10 | 4 6 . Haulers Intercepted . | . . . Recyclers Shooed . | . . . Parts Field Recycled . | . . . Retrieved Matter . | . . . Parts Self-Destructed . | . . . Prevented . | . . . Kills | -11 -10 -10 ------- Run | Jun Mat Min Combat Hostiles Destroyed . | . . . Classes Destroyed 3 | 1 2 . Tunneler 1 | 1 . . Operator 1 | . 1 . Watcher 1 | . 1 . Best Kill Streak 1 | 1 1 . Combat Bots Only . | . . . Max Kills in Single Turn 1 | 1 1 . Gunslinging . | . . . Exploded . | . . . Melee . | . . . Uniques/NPCs Destroyed . | . . . Combat | -11 -10 -10 -------- Run | Jun Mat Min Damage Taken 539 | . . 539 Core 257 | . . 257 Absorbed by Shields . | . . . Core Remaining (%) 100 | 100 . . Volleys Fired 15 | 2 8 5 Largest 1 | 1 1 1 Hottest 20 | 20 20 20 Shots Fired 15 | 2 8 5 Gun 15 | 2 8 5 Cannon . | . . . Launcher . | . . . Special . | . . . Kinetic 15 | 2 8 5 Thermal . | . . . Explosive . | . . . Electromagnetic . | . . . Robot Hit Streak 3 | 2 3 2 Robot Miss Streak 2 | . 2 1 Penetration Max . | . . . Secondary Targets . | . . . Shots Hit Robots 10 | 2 5 3 Core Hits 6 | 1 3 2 Critical Kills 1 | . 1 . Critical Parts Destroyed . | . . . Critical Strikes 1 | . 1 . Destroy 1 | . 1 . Melee Attacks . | . . . Impact . | . . . Slashing . | . . . Piercing . | . . . Sneak Attacks . | . . . Combat Hostiles . | . . . Follow-up Attacks . | . . . Damage Inflicted 80 | 16 38 26 Guns 76 | 16 38 22 Cannons . | . . . Explosions . | . . . Melee . | . . . Ramming 4 | . . 4 Kinetic 76 | 16 38 22 Thermal . | . . . Explosive . | . . . Electromagnetic . | . . . Impact . | . . . Slashing . | . . . Piercing . | . . . Highest Corruption . | . . . Average Corruption . | . . . Corruption Purged . | . . . Corruption Blocked . | . . . Overload Shots . | . . . Overflow Damage . | . . . Projectiles . | . . . Explosions . | . . . Melee . | . . . Knockbacks . | . . . Impact . | . . . Kinetic . | . . . Secondary . | . . . Self-Inflicted Damage 2 | . . 2 Shots . | . . . Rammed 3 | . . 3 Targets Rammed 3 | . . 3 Kicked . | . . . Crushed . | . . . Highest Temperature 24 | . . 24 Average Temperature 9 | . . 9 Received Heat Transfer 120 | . . 120 Siege Activations . | . . . Robots Corrupted . | . . . Combat Hostiles . | . . . Parts Fried . | . . . Impact Corruptions . | . . . Robots Melted . | . . . Combat Hostiles . | . . . Parts Melted . | . . . Heat Transferred . | . . . Parts Sabotaged . | . . . Parts Stolen . | . . . Parts Stripped . | . . . Power Chain Reactions . | . . . Missiles Intercepted . | . . . Alert | -11 -10 -10 ------- Run | Jun Mat Min Peak Influence 36 | 5 30 36 Initial 11 | . 3 11 Average 13 | 2 17 15 Maximum Alert Level . | . . . Low Security (%) 100 | 100 100 100 Level 1 . | . . . Level 2 . | . . . Level 3 . | . . . Level 4 . | . . . Level 5 . | . . . High Security . | . . . Max Security . | . . . Squads Dispatched 1 | . 1 . Investigation . | . . . Extermination . | . . . Reinforcement 1 | . 1 . Assault . | . . . Garrison . | . . . Intercept . | . . . Searches Triggered . | . . . Construction Impeded . | . . . Haulers Reinforced . | . . . Active Scanning Responses . | . . . Cargo Convoy Interrupts . | . . . Stealth | -11 -10 -10 --------- Run | Jun Mat Min Distress Signals . | . . . Communications Jammed . | . . . Distress Signals . | . . . Times Spotted 27 | . 3 24 Peak Tracking Total 17 | . 2 17 Tactical Retreats 2 | . . 2 Traps | -11 -10 -10 ------- Run | Jun Mat Min Traps Triggered . | . . . Indirectly . | . . . Trap Hack Attempts . | . . . Triggered . | . . . Disarmed . | . . . Reprogrammed . | . . . Reused . | . . . Traps Extracted . | . . . Installed . | . . . Triggered . | . . . Machines | -11 -10 -10 ---------- Run | Jun Mat Min Machines Disabled . | . . . Max in Single Turn . | . . . Machines Repaired . | . . . Machines Sabotaged . | . . . Overloaded Fab Kills . | . . . Hacking | -11 -10 -10 --------- Run | Jun Mat Min Machines Accessed 2 | . 2 . Terminals 1 | . 1 . Fabricators . | . . . Repair Stations 1 | . 1 . Recycling Units . | . . . Scanalyzers . | . . . Garrison Access . | . . . Total Hacks 5 | . 5 . Successful . | . . . Failed 5 | . 5 . Catastrophic . | . . . Database Lockouts . | . . . Manual . | . . . Terminals 2 | . 2 . Fabricators . | . . . Repair Stations 3 | . 3 . Recycling Units . | . . . Scanalyzers . | . . . Garrison Access . | . . . Terminal Hacks . | . . . Fabricator Hacks . | . . . Repair Station Hacks . | . . . Recycling Unit Hacks . | . . . Scanalyzer . | . . . Garrison Access Hacks . | . . . Unauthorized Hacks . | . . . Terminals . | . . . Fabricators . | . . . Repair Stations . | . . . Recycling Units . | . . . Scanalyzers . | . . . Garrison Access . | . . . Data Cores Recovered . | . . . Used . | . . . Hacking Detections 2 | . 2 . Full Trace Events 1 | . 1 . Feedback Events . | . . . Feedback Blocked . | . . . Robot Schematics Acquired . | . . . Robots Built . | . . . Authchips . | . . . Time . | . . . Total Robot Build Rating . | . . . Part Schematics Acquired . | . . . Parts Built . | . . . Authchips . | . . . Time . | . . . Total Part Build Rating . | . . . Parts Repaired . | . . . Time . | . . . Parts Recycled . | . . . Recycled Matter . | . . . Retrieved Matter . | . . . Retrieved Components . | . . . Parts Scanalyzed . | . . . Part Schematics Acquired . | . . . Parts Damaged . | . . . Bothacking | -11 -10 -10 ------------ Run | Jun Mat Min Used RIF Installer . | . . . Robots Hacked . | . . . Non-combat . | . . . Combat . | . . . Robot Hacks Applied . | . . . Relay Couplers Released . | . . . Fabnet Peak Effective % . | . . . Robots Rewired . | . . . Allies Hacked . | . . . Hacks Repelled . | . . . Allies | -11 -10 -10 -------- Run | Jun Mat Min Total Allies . | . . . Largest Group . | . . . Highest-Rated Group . | . . . Highest-Rated Ally . | . . . Total Orders . | . . . Ally Attacks . | . . . Total Damage . | . . . Kills . | . . . Allies Corrupted . | . . . Allies Melted . | . . . Intel | -11 -10 -10 ------- Run | Jun Mat Min Robot Analysis Total . | . . . Derelict Logs Recovered . | . . . Drone Launches . | . . . Drone Recoveries . | . . . Exploration | -11 -10 -10 ------------- Run | Jun Mat Min Turns Passed 253 | 40 107 106 Spaces Moved 283 | 32 113 138 Core 3 | 3 . . Treads . | . . . Legs . | . . . Wheels 90 | 29 43 18 Hover 190 | . 70 120 Flight . | . . . Fastest Speed 50 | 50 56 56 Average Speed 66 | 83 69 59 Slowest Speed 125 | 90 125 80 Overloaded Moves . | . . . Propulsion Burnouts . | . . . Robots Hopped . | . . . Cave-ins Triggered . | . . . Exploration Rate (%) 21 | 3 26 36 Regions Visited 2 Branch Regions 1 Pre-discovered Areas . | . . . Known Exits Taken 1 | . 1 . Unknown Exits Taken 1 | 1 . . Scrap Searched . | . . . Spaces Dug . | . . . Terrain Destroyed . | . . . Melee . | . . . Projectile . | . . . AOE . | . . . Terrain Rammed . | . . . Walls Destroyed . | . . . Machines Disabled . | . . . Actions | -11 -10 -10 --------- Run | Jun Mat Min Total 329 | 40 135 154 Wait 2 | . 1 1 Move 281 | 31 112 138 Hop . | . . . Pick Up 2 | 1 1 . Fast Attach 11 | 6 3 2 Attach 3 | . 3 . Detach 4 | . 3 1 Swap 6 | . 2 4 Drop 2 | . 2 . Fire 15 | 2 8 5 Melee . | . . . Ram 3 | . . 3 Kick . | . . . Crush . | . . . Escape Stasis . | . . . Rewire . | . . . Trap . | . . . Miscellaneous . | . . . Route ------- -11/Junkyard -10/Materials -10/Mines History --------- Turn | Location | Event 16 | -11/Junkyard | Discovered new exit (range 16) 41 | -11/Junkyard | Entered Materials 121 | -10/Materials | Discovered new exit (range 6) 143 | -10/Materials | Identified exit to Mines 148 | -10/Materials | Entered Mines 153 | -10/Mines | Met a Derelict bent on vengeance 185 | -10/Mines | Assembled infested the area 190 | -10/Mines | Assisted by a Guerilla fighting off Assembled 233 | -10/Mines | Core integrity fell below 50% 250 | -10/Mines | Core integrity fell below 20% 254 | -10/Mines | Destroyed by as-88704 with Assembled Heavy Rifle Last Messages --------------- 00190_ A derelict emerges from the shadows: "You need to get out of here! I've been tracking a group of Assembled to figure out where they're coming from, and they're closing on this area, come on!" 00206_ Slammed into as-31090. 00210_ Lgt. Ion Engine destroyed. 00227_ Lgt. Assault Rifle destroyed. 00228_ Slammed into as-88704. 00243_ Acquired 7 matter. 00244_ Acquired 2 matter. 00245_ Acquired 11 matter. 00245_ Acquired 3 matter. 00247_ GR-1NB(g) destroyed. 00247_ Acquired Cmb. Airjet. 00250_ Acquired 52 matter. 00250_ T-07 Excavator destroyed. 00250_ as-40453 destroyed. 00251_ as-52825 sneak attacks. 00251_ U-05 Engineer destroyed. 00251_ Acquired Lgt. Deuterium Engine. 00252_ Hover Unit destroyed. Map ----- +----------------------------------------------------+ | ?????????????????????????????????????????????????? | | ?????????????????????????????????????????????????? | | ?????????????????????????????????????????????????? | | ?????????????????????????????????????????????????? | | ?????????????????????????????????????????????????? | | ?????????????????????????????????????????????????? | | ?????????????????????????????????????????????????? | | ?????????????????????????????????????????????????? | | ?????????????????????????????????????????????????? | | ?????????????????????????????????????????????????? | | ??????????????????????? ????????????????????????? | | ????????????????????? ????????????????????????? | | ??????????????????## ?????? ????????????????? | | ?????????????????## r ?????# = ??????????????? | | ??????????????#### #???# !a ?????????????? | | ??????????????# ### ! ??????????????? | | ?????????????? % = ???????????????? | | ??????????????? % %[ ????????????????? | | ???????????????? ! ? ???????????????? | | ?????????????????# ??????????????????? | | ??????????????????# a#??????????????????? | | ???????????????????# #??????????????????? | | ???????????????????# %% a#??????????????????? | | ???????????????????# !*= #??????????????????? | | ???????????????????# ]%== #??????#????????????? | | ???????????????????# *%!@= #?#????????#????????? | | ???????????????????## =a% ##???????????????????? | | ????????????????????# !aa]%#??#????????#????????? | | ????????????##??????## %%aaa#?????????????######## | | ???????????? ###??####a%##??#?????????## ## # | | ????????????# ####?##a##???????#????# | | ?????????????# ##"%a##?????#?????# | | ????????????????? ##a##???????#????# # | | ????????????????????# ##a#??####???????## ## | | ?????????????????????# #?## ##????##?# ##? | | ?????????????????????# ## #?# ###?#??## ##?? | | ?????????????????????# ## ### ##??## #??? | | ?????"????????????#??## #??# #?#? | | ?????????????????????## #??# #??? | | ????????????????????## ####### ##??## ##??? | | ????????????????????# #????## ##???## ##???? | | ???????????????????## #???### #???## ##????? | | ?????????????????### ##???#?# ##### ##????? | | ????????????????## ##??????# ##?#?? | | ???????????###### #???????# ##### ##?## | | ?????????### ## ##????### #???## ## | | ??????????# #???## ##???## | | ??????????# #???# #??## | | ??????????## ##???# ### | | ???????????### ####????# | +----------------------------------------------------+ Best States ------------- Heat Dissipation 25 Energy Generation 10 Energy Capacity 250 Matter Stores 300 Matter Capacity 300 Sight Range 16 Terrain Scan Range 16 Terrain Scan Density 10 Evasion (%) 53 Item Schematics ----------------- None Robot Schematics ------------------ None Fabricated ------------ Nothing Alien Tech Used ----------------- None Achievements -------------- None Challenges ------------ None Game ------ Seed UtilitySkeletonActivator Manual? 0 Play Time 00:08:52 Cumulative 13.9 hours Start 2023.12.27 @ 23:47:17 End 2023.12.28 @ 08:08:38 Sessions 1 Manual Loads 0 Difficulty Rogue Special Mode None Game No. 11 Rogue 11 Adventurer 0 Explorer 0 Win Type - Total 0 Types 0/0/0/0/0/0/0/0/0 Lore% 34 Gallery% 25 Achievement% 27 Wizard Run 0 Options --------- ASCII 0 Keyboard 1 Movement Arrows Keybinds 0 Fullscreen 1 Font 12/Proggy Map View 83x54 Tactical HUD 1 Map Filters NONE Filters NONE Steam 0 RUN: 8666c9f0-9d20-43ca-824b-72fbb121e567